bitfinex/quotes_ETHUSD_20250404
["timestamp","ask_amount","ask_price","bid_price","bid_amount"]
[1743730277655,0.5929,1813.2,1813.1,11.03053]
[1743730278564,0.5929,1813.2,1813.1,5.51526]
[1743730279154,0.5929,1813.2,1813.0,5.51565]
[1743730279155,1.3684,1813.2,1813.0,5.51565]
[1743730279466,4.3684,1813.2,1813.0,5.51559]
[1743730279635,13.6223283,1813.2,1812.9,5.51595]
[1743730279835,0.43684,1813.1,1812.9,5.51595]
[1743730280345,0.7755,1812.9,1812.6,5.51689]
[1743730280540,5.39,1812.8,1812.7,5.51663]
[1743730283737,5.39,1812.8,1812.6,5.51679]
[1743730283738,3.0,1812.7,1812.6,5.51679]
[1743730284055,4.3282,1812.7,1812.5,5.51719]
[1743730284237,4.3282,1812.7,1812.5,10.98431]
[1743730284751,4.3282,1812.7,1812.5,10.98432]
[1743730285349,4.3282,1812.7,1812.6,5.51693]
[1743730285677,3.0,1812.7,1812.6,5.51693]
[1743730287776,5.39,1812.8,1812.7,5.51663]
[1743730287943,43.46197369,1813.0,1812.9,5.51602]
[1743730288143,48.84197369,1813.0,1812.9,5.51602]
[1743730288371,51.84197369,1813.0,1812.9,5.51602]
[1743730288572,57.06985506,1813.0,1812.9,5.51602]
[1743730288767,51.28188137,1813.0,1812.9,5.51602]
[1743730288974,51.437,1813.0,1812.9,5.51602]
[1743730289273,51.437,1813.0,1812.8,5.51621]
[1743730289456,51.437,1813.0,1812.9,5.51602]
[1743730291173,48.437,1813.0,1812.9,5.51602]
[1743730292095,0.43684,1813.1,1812.9,5.51602]
[1743730292096,49.8562,1813.4,1813.2,5.51492]
[1743730292247,5.924455,1813.3,1813.2,11.02989]
[1743730292451,8.924455,1813.3,1813.2,11.02989]
[1743730292886,8.924455,1813.3,1813.2,5.51492]
[1743730295275,5.373,1813.3,1813.2,5.51492]
[1743730296896,49.067,1813.4,1813.3,5.5148]
[1743730297096,54.442,1813.4,1813.3,5.5148]
[1743730297499,48.433,1813.4,1813.3,6.3271]
[1743730297649,43.057,1813.4,1813.3,6.3271]
[1743730297846,48.434,1813.4,1813.3,8.062799]
[1743730298050,48.434,1813.4,1813.3,5.5148]
[1743730300085,48.36675374,1813.4,1813.3,5.5148]
[1743730302989,48.36675374,1813.4,1813.3,6.3271]
[1743730307298,48.36675374,1813.4,1813.3,5.5148]
[1743730307469,52.18165374,1813.4,1813.3,5.5148]
[1743730307659,57.39981911,1813.4,1813.3,5.5148]
[1743730308282,56.58491911,1813.4,1813.3,5.5148]
[1743730308479,51.36675374,1813.4,1813.3,5.5148]
[1743730308998,51.36675374,1813.4,1813.2,5.51492]
[1743730309491,51.36675374,1813.4,1813.2,11.02988]
[1743730310499,51.36675374,1813.4,1813.3,5.5148]
[1743730314208,45.98975374,1813.4,1813.3,5.5148]
[1743730314378,51.32975374,1813.4,1813.3,5.5148]
[1743730316381,8.34,1813.4,1813.3,5.5148]
[1743730316682,5.34,1813.4,1813.3,6.3136]
[1743730316900,43.046,1813.6,1813.5,5.51419]
[1743730317212,48.385,1813.6,1813.5,5.51419]
[1743730317511,48.384,1813.6,1813.5,5.51419]
[1743730321716,9.27143,1813.5,1813.1,5.51522]
[1743730321904,3.7571,1813.5,1813.2,11.02983]
[1743730322221,3.7571,1813.5,1813.4,5.5145]
[1743730322420,3.0,1813.5,1813.4,5.5145]
[1743730325324,0.7571,1813.4,1813.2,5.51497]
[1743730325501,4.4959083,1813.4,1813.0,5.51569]
[1743730325700,5.96441083,1813.3,1813.0,11.0312]
[1743730325900,5.342,1813.2,1813.0,11.0312]
[1743730326123,5.342,1813.2,1813.0,5.51558]
[1743730326346,5.342,1813.2,1813.0,5.51557]
[1743730327006,5.342,1813.2,1813.0,11.03118]
[1743730327206,9.47264608,1813.2,1813.1,5.51541]
[1743730327618,9.47264608,1813.2,1813.0,5.51557]
[1743730327796,0.7603,1813.1,1812.9,5.51589]
[1743730327993,0.7603,1813.1,1812.6,0.8111]
[1743730327994,0.7603,1813.1,1812.8,5.5163]
[1743730328324,3.0,1813.0,1812.8,5.51618]
[1743730328523,4.3469048,1813.0,1812.8,5.51618]
[1743730329533,0.7603,1812.9,1812.6,5.51679]
[1743730329713,12.0768083,1812.8,1812.4,11.03482]
[1743730329913,43.049,1812.7,1812.4,11.03482]
[1743730330119,48.65610982,1812.7,1812.5,5.51719]
[1743730330521,48.65610982,1812.7,1812.5,11.03426]
[1743730330698,48.65610982,1812.7,1812.6,5.51693]
[1743730330900,46.049,1812.7,1812.6,5.51693]
[1743730331340,43.049,1812.7,1812.6,5.51693]
[1743730331740,43.049,1812.7,1812.6,6.38319413]
[1743730331904,43.049,1812.7,1812.6,6.32803]
[1743730332102,43.049,1812.7,1812.6,6.38319292]
[1743730332353,43.049,1812.7,1812.6,7.94710004]
[1743730333533,5.338,1812.8,1812.7,5.51663]
[1743730333735,5.338,1812.8,1812.7,6.32773]
[1743730335273,5.338,1812.8,1812.7,6.3828914]
[1743730335448,5.338,1812.8,1812.7,6.32773]
[1743730335646,5.338,1812.8,1812.7,7.66858671]
[1743730336180,5.338,1812.8,1812.7,8.27374569]
[1743730336363,5.338,1812.8,1812.7,8.27374432]
[1743730336539,5.338,1812.8,1812.7,8.21858671]
[1743730337065,5.338,1812.8,1812.7,7.66858671]
[1743730337374,5.338,1812.8,1812.7,6.32773]
[1743730337682,5.338,1812.8,1812.7,5.51663]
[1743730339382,3.0,1812.7,1812.6,5.51693]
[1743730340276,5.338,1812.8,1812.7,5.51663]
[1743730342477,3.7603,1813.0,1812.7,11.03326]
[1743730342654,5.363,1812.9,1812.7,11.03326]
[1743730343178,8.363,1812.9,1812.8,5.51632]
[1743730344176,8.363,1812.9,1812.7,11.03303]
[1743730344356,8.363,1812.9,1812.7,5.51651]
[1743730344540,8.363,1812.9,1812.7,11.03298]
[1743730345074,43.054,1813.0,1812.9,5.51602]
[1743730345281,48.409,1813.0,1812.9,5.51602]
[1743730350984,53.2499,1813.0,1812.8,5.51632]
[1743730351188,6.33043,1812.9,1812.6,5.51683]
[1743730351389,3.0,1812.8,1812.6,5.51683]
[1743730352150,3.0,1812.8,1812.6,11.03362]
[1743730353687,3.41231634,1812.8,1812.6,11.03362]
[1743730353859,3.41231634,1812.8,1812.6,5.51679]
[1743730354492,3.41231634,1812.8,1812.6,11.03361]
[1743730354784,0.41231634,1812.8,1812.7,5.51663]
[1743730354988,3.8144,1812.9,1812.7,11.03326]
[1743730355190,6.95432276,1812.9,1812.7,5.51663]
[1743730356600,6.95432276,1812.9,1812.7,11.03314]
[1743730357293,6.95432276,1812.9,1812.8,5.51632]
[1743730357659,3.0,1812.9,1812.8,5.51632]
[1743730358193,5.346,1812.9,1812.8,5.51632]
[1743730358870,43.054,1813.0,1812.9,5.51602]
[1743730359071,48.407,1813.0,1812.9,5.51602]
[1743730365920,52.9134083,1813.0,1812.6,5.51666]
[1743730366214,10.35678,1812.9,1812.6,5.51666]
[1743730366382,0.7676,1812.7,1812.4,11.03489]
[1743730366582,5.342,1812.6,1812.4,11.03481]
[1743730366782,5.342,1812.6,1812.5,5.51724]
[1743730368087,5.95296,1812.6,1812.4,5.5174]
[1743730368415,5.95296,1812.6,1812.4,11.0348]
[1743730368812,5.342,1812.6,1812.5,5.51724]
[1743730369017,8.342,1812.6,1812.5,5.51724]
[1743730369214,13.85918,1812.6,1812.2,6.28056]
[1743730369415,13.85918,1812.6,1812.1,0.1]
[1743730369416,4.5064083,1812.4,1812.1,0.1]
[1743730369587,12.2569583,1812.2,1812.1,0.1]
[1743730369785,23.8958783,1812.2,1811.8,5.51926]
[1743730370003,6.7388083,1812.0,1811.7,11.03917]
[1743730370190,6.7388083,1812.0,1811.6,11.80239]
[1743730370398,6.7388083,1812.0,1811.7,11.03907]
[1743730370596,0.67388083,1811.9,1811.7,5.51952]
[1743730370818,5.353,1811.8,1811.6,6.28254]
[1743730370986,5.353,1811.8,1811.6,11.03966]
[1743730371191,5.353,1811.8,1811.6,5.51982]
[1743730371500,5.77621735,1811.8,1811.6,11.03963]
[1743730371709,6.42122717,1811.8,1811.7,0.20691612]
[1743730371911,6.42122717,1811.8,1811.7,5.72658612]
[1743730372107,6.42122717,1811.8,1811.7,0.20691612]
[1743730372317,7.18882717,1811.8,1811.7,0.20691612]
[1743730372614,7.18882717,1811.8,1811.7,5.51967]
[1743730372615,6.42122717,1811.8,1811.7,5.51967]
[1743730373016,6.42122717,1811.8,1811.7,5.72658612]
[1743730374506,6.42122717,1811.8,1811.7,0.20691612]
[1743730374706,6.42122717,1811.8,1811.6,5.51975]
[1743730374906,6.42122717,1811.8,1811.7,0.20691612]
[1743730375116,6.42122717,1811.8,1811.6,5.51975]
[1743730375315,6.42122717,1811.8,1811.6,11.03958]
[1743730375525,6.42122717,1811.8,1811.7,5.72658612]
[1743730375831,6.42122717,1811.8,1811.7,0.20691612]
[1743730376136,6.42122717,1811.8,1811.6,11.03958]
[1743730376501,6.42122717,1811.8,1811.5,5.52017]
[1743730376502,3.64212272,1811.7,1811.5,5.52017]
[1743730376708,0.7819,1811.6,1811.4,5.52057]
[1743730376930,0.7819,1811.6,1811.4,11.04102]
[1743730377237,0.7819,1811.6,1811.5,5.52028]
[1743730377436,1.22430227,1811.6,1811.5,5.52028]
[1743730377733,0.44240227,1811.6,1811.5,5.52028]
[1743730380146,3.64212272,1811.7,1811.6,5.51998]
[1743730380345,3.64212272,1811.7,1811.5,5.62924262]
[1743730380639,3.0,1811.7,1811.6,5.62866105]
[1743730380840,3.0,1811.7,1811.6,0.10868105]
[1743730381051,3.0,1811.7,1811.6,5.62866105]
[1743730381222,3.0,1811.7,1811.6,5.51998]
[1743730381517,3.0,1811.7,1811.6,5.62862694]
[1743730381846,4.47862174,1811.7,1811.6,5.62862694]
[1743730382942,1.47862174,1811.7,1811.6,5.62862694]
[1743730383150,14.78621735,1811.8,1811.7,5.51967]
[1743730383744,6.43321735,1811.8,1811.7,5.6280354]
[1743730383943,11.78121735,1811.8,1811.7,5.6280354]
[1743730385652,6.43321735,1811.8,1811.7,5.6280354]
[1743730385950,11.78121735,1811.8,1811.7,5.6280354]
[1743730386119,11.358,1811.8,1811.7,5.6280354]
[1743730386745,5.348,1811.8,1811.7,5.6280354]
[1743730386923,0.40755194,1812.0,1811.9,5.51906]
[1743730387126,43.058,1812.1,1812.0,5.51876]
[1743730387321,48.402,1812.1,1812.0,5.64839897]
[1743730387527,48.407,1812.1,1812.0,5.64839897]
[1743730388953,53.9977,1812.1,1812.0,0.12963897]
[1743730389131,5.51881,1812.0,1811.7,5.51961]
[1743730389341,10.0079583,1811.9,1811.8,0.10859539]
[1743730389866,3.0,1811.8,1811.6,5.51984]
[1743730390023,5.353,1811.7,1811.6,11.03971]
[1743730390430,5.353,1811.7,1811.6,11.16943161]
[1743730390724,5.353,1811.7,1811.6,5.64956161]
[1743730392440,6.1883,1811.7,1811.6,0.12972161]
[1743730392649,16.1967783,1811.7,1811.6,0.12972161]
[1743730392849,10.6771083,1811.7,1811.6,0.12972161]
[1743730393064,16.1967883,1811.7,1811.4,11.04094]
[1743730393366,9.26998,1811.6,1811.5,0.13112338]
[1743730393551,20.63846713,1811.6,1811.5,0.13112338]
[1743730393753,9.2712,1811.2,1811.1,0.1]
[1743730393952,61.4480083,1811.2,1811.1,0.1]
[1743730394357,61.4480083,1811.2,1810.7,5.52258]
[1743730394554,49.49629881,1811.2,1811.1,5.5215]
[1743730394734,57.85129881,1811.2,1810.9,5.52211]
[1743730394934,61.59010711,1811.2,1811.0,11.04358]
[1743730395133,61.59010711,1811.2,1810.8,6.32722]
[1743730395336,3.7388083,1811.0,1810.9,5.52197]
[1743730395755,6.33954393,1811.1,1810.9,5.52197]
[1743730395982,6.33954393,1811.1,1811.0,5.52181]
[1743730396141,6.33954393,1811.1,1810.9,5.52197]
[1743730396482,6.33954393,1811.1,1810.9,5.52195]
[1743730396869,6.33954393,1811.1,1811.0,5.52181]
[1743730397049,6.33954393,1811.1,1810.9,5.52195]
[1743730397383,0.63395439,1811.0,1810.9,5.52195]
[1743730398948,0.63395439,1811.0,1810.8,5.52239]
[1743730399386,0.63395439,1811.0,1810.9,0.15444979]
[1743730399595,3.63395439,1811.0,1810.8,11.04466]
[1743730399781,3.63395439,1811.0,1810.9,0.15444979]
[1743730399950,3.63395439,1811.0,1810.8,5.52227]
[1743730400149,0.36339544,1810.9,1810.8,5.52227]
[1743730400458,0.36339544,1810.9,1810.7,5.5227]
[1743730400658,0.36339544,1810.9,1810.4,0.8051]
[1743730400659,5.351,1810.8,1810.6,11.04595]
[1743730400863,15.4259383,1810.8,1810.5,5.52327]
[1743730401079,0.5351,1810.7,1810.5,11.04645]
[1743730401617,0.5351,1810.7,1810.5,5.52318]
[1743730401764,0.5351,1810.7,1810.6,5.52303]
[1743730401960,5.351,1810.8,1810.7,5.52272]
[1743730402772,9.0898083,1810.8,1810.6,5.52303]
[1743730402979,9.0898083,1810.8,1810.6,11.04591]
[1743730403167,5.351,1810.8,1810.7,5.52272]
[1743730403494,5.351,1810.8,1810.7,6.32782]
[1743730403796,5.351,1810.8,1810.7,5.52272]
[1743730407792,6.1861,1810.8,1810.7,5.52272]
[1743730408571,6.9931,1810.8,1810.7,5.52272]
[1743730408970,6.1861,1810.8,1810.7,5.52272]
[1743730410205,5.351,1810.8,1810.7,6.43793752]
[1743730410806,5.351,1810.8,1810.7,6.30932]
[1743730411099,5.351,1810.8,1810.6,11.04578]
[1743730411271,6.158,1810.8,1810.6,11.04578]
[1743730411471,6.158,1810.8,1810.7,0.12861752]
[1743730411673,7.0738,1810.8,1810.7,0.12861752]
[1743730411901,6.2668,1810.8,1810.7,5.65133752]
[1743730412291,6.2668,1810.8,1810.7,5.52272]
[1743730412606,5.351,1810.8,1810.7,5.65133752]
[1743730414276,3.0,1810.9,1810.8,5.52242]
[1743730414501,8.343,1810.9,1810.8,5.52242]
[1743730414809,8.343,1810.9,1810.8,5.65069934]
[1743730415309,8.343,1810.9,1810.8,5.52242]
[1743730415523,7.21759881,1811.2,1810.8,5.52242]
[1743730415690,0.40429881,1811.2,1811.1,5.5215]
[1743730415890,5.75229881,1811.2,1811.1,5.64876502]
[1743730416112,5.348,1811.2,1811.1,5.64876502]
[1743730416295,5.348,1811.2,1811.1,0.12726502]
[1743730416495,5.348,1811.2,1811.1,5.5215]
[1743730416809,9.6216083,1811.2,1811.1,0.12722405]
[1743730417728,10.03830721,1811.2,1811.1,5.64872405]
[1743730417885,6.29949891,1811.2,1811.1,5.64872405]
[1743730419118,6.29949891,1811.2,1811.1,0.12722405]
[1743730419415,13.83950721,1811.2,1811.1,0.12722405]
[1743730419606,19.36070721,1811.2,1811.1,0.12722405]
[1743730419806,3.0,1811.1,1810.8,11.04457]
[1743730420006,0.3,1811.0,1810.9,11.04407]
[1743730420187,0.3,1811.0,1810.9,5.52201]
[1743730421920,0.3,1811.0,1810.8,11.04462]
[1743730422619,0.3,1811.0,1810.8,5.5223]
[1743730422920,3.0,1810.8,1810.4,0.7921]
[1743730423131,3.7388083,1810.6,1810.4,5.5235]
[1743730423330,3.7388083,1810.6,1810.5,5.52333]
[1743730423510,5.64,1810.7,1810.6,5.52303]
[1743730423905,5.34,1810.7,1810.6,5.52303]
[1743730426135,5.7625936,1810.7,1810.6,5.52303]
[1743730429316,5.7625936,1810.7,1810.5,11.83851]
[1743730429636,5.7625936,1810.7,1810.5,11.04643]
[1743730429832,5.7625936,1810.7,1810.4,5.52359]
[1743730430025,1.37745936,1810.6,1810.4,5.5235]
[1743730430207,0.57625936,1810.6,1810.5,5.52333]
[1743730432337,5.7625936,1810.7,1810.6,5.52303]
[1743730433731,5.324,1810.7,1810.6,5.52303]
[1743730440556,3.0,1810.8,1810.7,5.52272]
[1743730440715,8.313,1810.8,1810.7,5.52272]
[1743730441959,8.313,1810.8,1810.5,5.52325]
[1743730442142,9.1443,1810.8,1810.5,11.0465]
[1743730442317,9.1443,1810.8,1810.6,5.52297]
[1743730442519,9.1443,1810.8,1810.6,11.04588]
[1743730442927,9.1443,1810.8,1810.7,5.52272]
[1743730443149,44.2175,1811.0,1810.7,5.52272]
[1743730443150,43.108,1811.0,1810.9,5.52211]
[1743730443356,48.421,1811.0,1810.9,5.52211]
[1743730443560,43.108,1811.0,1810.9,5.52211]
[1743730443861,43.108,1811.0,1810.9,7.459849]
[1743730443862,48.422,1811.0,1810.9,7.459849]
[1743730445540,48.422,1811.0,1810.9,6.35541]
[1743730445860,48.422,1811.0,1810.9,5.52211]
[1743730446970,48.422,1811.0,1810.9,6.35541]
[1743730448376,46.9006,1811.7,1811.0,5.52164]
[1743730448670,46.9006,1811.7,1810.9,1.3833]
[1743730448671,48.76205192,1811.7,1811.5,5.52015]
[1743730448869,5.319,1811.6,1811.5,5.52015]
[1743730449172,6.1136,1811.6,1811.4,5.52058]
[1743730449367,0.61136,1811.5,1811.4,5.52058]
[1743730449569,0.61136,1811.5,1811.3,5.52086]
[1743730449770,0.61136,1811.5,1811.2,5.52116]
[1743730449964,6.31543,1811.4,1811.0,11.04351]
[1743730450167,5.52091,1811.3,1811.0,11.0434]
[1743730450368,0.7946,1811.1,1811.0,11.0434]
[1743730450840,5.883091,1811.2,1811.1,5.5215]
[1743730451040,6.62136,1811.5,1811.2,5.5212]
[1743730451270,8.331,1811.4,1811.1,5.52146]
[1743730451443,8.331,1811.4,1811.1,5.52139]
[1743730451444,0.7946,1811.3,1811.1,5.52139]
[1743730452065,0.7946,1811.3,1811.1,5.52138]
[1743730452374,0.7946,1811.3,1811.2,5.5212]
[1743730452544,1.70716,1811.3,1811.2,5.5212]
[1743730452745,1.70716,1811.3,1811.1,11.04274]
[1743730452948,1.70716,1811.3,1811.1,5.52136]
[1743730453771,1.70716,1811.3,1811.0,11.04348]
[1743730454079,1.70716,1811.3,1811.0,11.04344]
[1743730454478,1.70716,1811.3,1811.0,5.5217]
[1743730454646,1.70716,1811.3,1811.0,11.04337]
[1743730455460,1.70716,1811.3,1811.1,5.52147]
[1743730455655,1.70716,1811.3,1811.1,5.52136]
[1743730455871,1.70716,1811.3,1811.1,11.04276]
[1743730456060,1.70716,1811.3,1811.1,5.52136]
[1743730456261,1.70716,1811.3,1811.1,11.04274]
[1743730456552,1.70716,1811.3,1811.1,5.52136]
[1743730456752,44.80716,1811.3,1811.1,11.04271]
[1743730457062,1.21490176,1811.2,1811.1,5.52135]
[1743730458184,1.63376532,1811.2,1811.1,5.52135]
[1743730459590,7.15514532,1811.2,1810.8,11.04463]
[1743730459887,1.63376532,1811.2,1811.0,5.5218]
[1743730460751,1.63376532,1811.2,1811.0,5.52167]
[1743730460956,1.63376532,1811.2,1811.1,5.5215]
[1743730461162,0.41886356,1811.2,1811.1,5.5215]
[1743730461361,44.80716,1811.3,1811.0,11.04335]
[1743730461562,44.80716,1811.3,1811.1,5.5215]
[1743730464389,44.01256,1811.3,1811.1,11.04281]
[1743730464863,43.1,1811.3,1811.2,5.5212]
[1743730465197,48.413,1811.3,1811.2,6.3249]
[1743730466592,43.1,1811.3,1811.2,6.3249]
[1743730466758,48.413,1811.3,1811.2,6.38010723]
[1743730466958,48.413,1811.3,1811.2,6.3249]
[1743730467386,48.413,1811.3,1811.2,6.38010555]
[1743730470096,43.1,1811.3,1811.2,8.1223921]
[1743730470263,48.412,1811.3,1811.2,8.6723921]
[1743730471381,5.312,1811.3,1811.2,8.6723921]
[1743730476299,5.312,1811.3,1811.2,8.61718655]
[1743730476901,43.096,1811.9,1811.8,5.51937]
[1743730477096,48.407,1811.9,1811.8,5.51937]
[1743730477805,43.096,1811.9,1811.8,5.51937]
[1743730478109,48.407,1811.9,1811.8,5.51937]
[1743730478405,53.62712,1811.9,1811.7,5.51956]
[1743730478614,53.62712,1811.9,1811.7,11.03912]
[1743730479406,0.7588,1811.8,1811.5,11.04024]
[1743730479609,0.7588,1811.8,1811.6,5.51997]
[1743730479814,0.7588,1811.8,1811.6,11.03983]
[1743730480114,3.51950276,1811.8,1811.7,5.51967]
[1743730480910,48.81561851,1811.9,1811.8,5.51937]
[1743730481210,49.57441851,1811.9,1811.8,5.51937]
[1743730481413,49.57441851,1811.9,1811.7,5.51967]
[1743730482583,49.57441851,1811.9,1811.8,5.51937]
[1743730482782,53.31322681,1811.9,1811.5,5.52028]
[1743730483114,53.31322681,1811.9,1811.4,5.52053]
[1743730483115,10.0173683,1811.7,1811.4,5.52056]
[1743730483316,10.0173683,1811.7,1811.3,5.52063]
[1743730483317,5.51998,1811.6,1811.3,5.52063]
[1743730483491,0.7588,1811.4,1811.3,5.52063]
[1743730483696,0.7588,1811.4,1811.2,5.52109]
[1743730484013,5.311,1811.5,1811.4,5.52059]
[1743730484218,8.311,1811.5,1811.4,5.52059]
[1743730484516,5.311,1811.5,1811.4,5.52059]
[1743730487118,3.0,1811.8,1811.6,5.51998]
[1743730487331,44.26341851,1811.9,1811.7,5.51954]
[1743730487621,5.311,1811.8,1811.7,5.51954]
[1743730487916,43.50461851,1811.9,1811.8,5.51937]
[1743730488118,51.81561851,1811.9,1811.8,5.51937]
[1743730489419,52.57441851,1811.9,1811.7,5.51954]
[1743730490014,52.57441851,1811.9,1811.7,11.03912]
[1743730490218,52.57441851,1811.9,1811.8,5.51937]
[1743730490822,51.81561851,1811.9,1811.8,5.51937]
[1743730491531,43.096,1811.9,1811.8,5.51937]
[1743730491689,48.407,1811.9,1811.8,7.46514954]
[1743730492017,43.096,1811.9,1811.8,7.46514954]
[1743730492991,43.096,1811.9,1811.8,7.959961]
[1743730493421,3.0,1812.5,1811.8,7.959961]
[1743730493422,0.4073636,1812.5,1811.9,0.55]
[1743730493607,0.8245,1812.8,1812.7,5.51663]
[1743730493816,6.1355,1812.8,1812.6,5.5168]
[1743730494012,6.1355,1812.8,1812.6,11.03357]
[1743730494217,8.311,1812.8,1812.7,5.51663]
[1743730494399,5.311,1812.8,1812.7,5.51663]
[1743730494605,5.311,1812.8,1812.6,5.51677]
[1743730494803,5.311,1812.8,1812.7,5.51663]
[1743730495009,8.72299412,1812.8,1812.7,5.51663]
[1743730496425,8.72299412,1812.8,1812.6,5.51677]
[1743730496628,9.68774353,1812.8,1812.4,5.5173]
[1743730496931,0.8108,1812.7,1812.4,5.5173]
[1743730497428,0.8108,1812.7,1812.5,5.51722]
[1743730498035,0.8108,1812.7,1812.4,5.5173]
[1743730499429,0.8108,1812.3,1812.0,5.51871]
[1743730499731,5.309,1812.2,1812.0,5.51871]
[1743730500028,5.309,1812.2,1812.0,11.03734]
[1743730500210,5.309,1812.2,1812.0,5.51863]
[1743730501261,0.8108,1812.1,1811.7,5.51956]
[1743730501401,8.7134193,1812.1,1811.8,5.51917]
[1743730501705,4.974611,1812.1,1811.8,5.51917]
[1743730502301,10.493161,1812.1,1811.7,5.51955]
[1743730502513,14.2319693,1812.1,1811.7,5.51955]
[1743730503332,14.2319693,1812.1,1811.7,11.03907]
[1743730504332,14.2319693,1812.1,1811.7,5.51952]
[1743730504837,5.51889,1812.0,1811.6,5.51998]
[1743730505127,5.51889,1812.0,1811.6,11.03996]
[1743730505310,14.2319693,1812.1,1811.6,11.03996]
[1743730505514,14.2319693,1812.1,1811.7,5.51963]
[1743730505717,8.7134193,1812.1,1811.7,5.51954]
[1743730505909,3.8108,1812.1,1811.8,5.57439201]
[1743730506109,3.8108,1812.1,1811.9,5.51897]
[1743730506416,3.8108,1812.1,1811.9,5.51903]
[1743730506919,3.8108,1812.1,1811.8,5.5192]
[1743730507739,3.8108,1812.1,1811.8,11.03846]
[1743730507960,3.8108,1812.1,1811.8,6.623046]
[1743730508242,9.2579583,1811.9,1811.5,5.52019]
[1743730508426,5.309,1811.8,1811.5,11.04034]
[1743730508619,5.309,1811.8,1811.6,11.03986]
[1743730508814,5.309,1811.8,1811.6,5.51993]
[1743730509403,5.309,1811.8,1811.6,5.51986]
[1743730510065,5.309,1811.8,1811.6,11.03972]
[1743730510336,5.309,1811.8,1811.6,12.143692]
[1743730510542,5.309,1811.8,1811.6,6.623832]
[1743730511242,5.309,1811.8,1811.6,5.51986]
[1743730511814,5.309,1811.8,1811.6,5.51984]
[1743730512013,5.309,1811.8,1811.6,11.03967]
[1743730512238,5.309,1811.8,1811.7,5.51967]
[1743730514254,5.309,1811.8,1811.6,11.03966]
[1743730514454,5.309,1811.8,1811.6,5.51983]
[1743730515259,5.309,1811.8,1811.7,5.51967]
[1743730516261,5.309,1811.8,1811.6,6.07733248]
[1743730516572,0.7917,1811.7,1811.5,5.52022]
[1743730516959,0.7917,1811.7,1811.6,5.51998]
[1743730517156,5.309,1811.8,1811.6,5.51998]
[1743730517157,6.1007,1811.8,1811.6,5.51998]
[1743730517362,5.309,1811.8,1811.7,5.51967]
[1743730518234,5.309,1811.8,1811.6,5.51985]
[1743730518429,5.309,1811.8,1811.6,11.03972]
[1743730518631,5.309,1811.8,1811.6,5.51985]
[1743730519746,5.309,1811.8,1811.6,11.0397]
[1743730522457,5.309,1811.8,1811.5,11.04035]
[1743730522659,5.309,1811.8,1811.5,5.52014]
[1743730522864,5.309,1811.8,1811.6,11.03971]
[1743730523089,0.41314278,1812.2,1812.1,5.51845]
[1743730523225,5.31,1812.2,1812.0,5.51869]
[1743730523434,0.8058,1812.0,1811.8,5.51925]
[1743730524042,11.63405,1812.2,1811.8,11.03852]
[1743730524365,17.15244,1812.2,1811.8,5.51925]
[1743730524565,3.7388083,1812.1,1811.8,5.51925]
[1743730525442,9.2573583,1812.1,1811.7,5.51961]
[1743730525676,0.8058,1812.0,1811.7,5.51953]
[1743730525872,3.7388083,1812.1,1811.8,5.51933]
[1743730526053,3.7388083,1812.1,1811.8,11.03859]
[1743730527392,3.7388083,1812.1,1811.8,5.51925]
[1743730527788,3.7388083,1812.1,1811.8,11.03847]
[1743730527958,3.7388083,1812.1,1811.8,5.51922]
[1743730528359,3.7388083,1812.1,1811.8,11.03845]
[1743730528884,3.7388083,1812.1,1811.9,5.51903]
[1743730529251,3.7388083,1812.1,1811.9,11.03799]
[1743730529483,3.0,1812.1,1811.9,5.51896]
[1743730529690,3.0,1812.1,1811.9,5.51895]
[1743730530079,3.0,1812.1,1812.0,5.51876]
[1743730530592,49.8958,1812.4,1812.1,11.0368]
[1743730530777,5.31,1812.3,1812.1,5.51835]
[1743730531083,8.31,1812.3,1812.1,5.51835]
[1743730531254,8.31,1812.3,1812.0,11.03733]
[1743730531455,8.31,1812.3,1812.1,0.27909293]
[1743730531653,6.32395,1812.2,1812.1,0.27909293]
[1743730531971,6.32558,1811.7,1811.3,6.34161]
[1743730532178,9.0478083,1811.6,1811.3,5.52061]
[1743730532366,9.0478083,1811.6,1811.4,0.27677122]
[1743730532570,9.0478083,1811.6,1811.4,5.79725122]
[1743730532760,5.309,1811.6,1811.5,5.52028]
[1743730532955,5.309,1811.6,1811.5,5.79675898]
[1743730533759,5.309,1811.6,1811.5,0.27647898]
[1743730534295,6.1148,1811.6,1811.5,0.27647898]
[1743730534589,12.8536083,1811.6,1811.5,0.27647898]
[1743730534763,12.8536083,1811.6,1811.4,5.52057]
[1743730534764,9.1148,1811.6,1811.4,5.52057]
[1743730534963,9.1148,1811.6,1811.5,0.27647898]
[1743730535165,10.06702254,1811.6,1811.5,0.27647898]
[1743730535363,15.58700254,1811.6,1811.5,0.27647898]
[1743730535598,15.58700254,1811.6,1811.3,5.52071]
[1743730535887,21.10724254,1811.6,1811.4,0.27677122]
[1743730536097,8.52028,1811.5,1811.4,0.27677122]
[1743730536265,11.00488908,1811.5,1811.1,5.52148]
[1743730536465,5.52062,1811.4,1811.2,0.27735578]
[1743730536665,11.00488908,1811.5,1811.2,0.27735578]
[1743730537701,3.7595,1811.3,1811.2,0.27735578]
[1743730537881,3.0,1811.0,1810.7,5.52269]
[1743730538194,3.0,1811.0,1810.4,5.52354]
[1743730538195,5.31,1810.9,1810.5,5.52322]
[1743730538364,6.59083083,1810.9,1810.5,5.52322]
[1743730538567,16.35452,1810.9,1810.5,5.52322]